bitfinex/quotes_BTCUSD_20220204
["timestamp","ask_amount","ask_price","bid_price","bid_amount"]
[1643979670087,0.0589,37989.0,37983.0,0.21403852]
[1643979670289,0.05,37984.0,37983.0,0.21403852]
[1643979670489,0.05,37984.0,37983.0,0.45949492]
[1643979670791,0.05,37988.0,37983.0,0.45949492]
[1643979670988,0.1089,37989.0,37984.0,0.131686]
[1643979670989,0.05,37986.0,37984.0,0.131686]
[1643979672390,0.05,37986.0,37984.0,0.197528]
[1643979672588,0.115845,37986.0,37984.0,0.197528]
[1643979672789,0.165845,37986.0,37984.0,0.197528]
[1643979674242,0.165845,37986.0,37984.0,0.247528]
[1643979674443,0.165845,37986.0,37984.0,0.115842]
[1643979674644,0.50529196,37986.0,37984.0,0.115842]
[1643979674842,0.33944696,37985.0,37984.0,0.115842]
[1643979675045,0.33944696,37985.0,37983.0,0.13266535]
[1643979675343,0.05,37984.0,37983.0,0.13266535]
[1643979675743,0.35,37984.0,37983.0,0.13266535]
[1643979675946,0.5,37984.0,37983.0,0.13266535]
[1643979676145,0.2,37984.0,37983.0,0.13266535]
[1643979676344,0.2,37984.0,37983.0,0.181701]
[1643979677003,0.1589,37984.0,37983.0,0.181701]
[1643979677202,0.49834696,37984.0,37983.0,0.181701]
[1643979677404,0.2589,37984.0,37983.0,0.181701]
[1643979678606,0.1589,37984.0,37983.0,0.181701]
[1643979679504,0.1589,37984.0,37980.0,3.19760365]
[1643979679704,0.40506968,37983.0,37981.0,0.00021118]
[1643979680004,0.19062,37982.0,37981.0,0.00021118]
[1643979680205,0.24062,37982.0,37980.0,3.19781483]
[1643979680456,0.29062,37982.0,37981.0,0.06586]
[1643979680649,0.29062,37982.0,37981.0,0.06607118]
[1643979680949,0.1089,37982.0,37981.0,0.06607118]
[1643979681150,0.1589,37982.0,37981.0,0.11607118]
[1643979685192,0.165859,37983.0,37981.0,0.11607118]
[1643979685693,0.065859,37983.0,37981.0,0.11607118]
[1643979685892,0.124759,37983.0,37981.0,0.11586]
[1643979687192,0.62772246,37986.0,37981.0,0.11586]
[1643979687393,0.05,37983.0,37981.0,0.181711]
[1643979687594,0.0589,37985.0,37981.0,0.181711]
[1643979688045,0.065859,37983.0,37981.0,0.181711]
[1643979688648,0.065859,37983.0,37982.0,0.05]
[1643979688947,0.065859,37983.0,37981.0,0.181711]
[1643979691246,0.065859,37983.0,37981.0,0.231711]
[1643979696247,0.46188046,37983.0,37981.0,0.231711]
[1643979696554,0.56188046,37983.0,37981.0,0.16586]
[1643979696747,0.224759,37983.0,37981.0,0.16586]
[1643979697647,0.52078046,37983.0,37981.0,0.16586]
[1643979697848,0.62078046,37983.0,37981.0,0.16586]
[1643979699704,0.62078046,37983.0,37981.0,0.11586]
[1643979699905,0.39602146,37982.0,37981.0,0.11586]
[1643979700105,0.44602146,37982.0,37981.0,0.11586]
[1643979700306,0.54602146,37982.0,37981.0,0.11586]
[1643979701506,0.31211633,37982.0,37981.0,0.11586]
[1643979702509,0.37101633,37982.0,37981.0,0.11586]
[1643979702952,0.59478431,37982.0,37981.0,0.11586]
[1643979703146,0.49478431,37982.0,37981.0,0.11586]
[1643979703348,0.80011282,37982.0,37981.0,0.11586]
[1643979703948,0.50506321,37982.0,37981.0,0.11586]
[1643979704251,1.24166321,37982.0,37981.0,0.11586]
[1643979704747,1.42278623,37982.0,37981.0,0.11586]
[1643979704949,1.71366739,37982.0,37981.0,0.11586]
[1643979705151,1.71366739,37982.0,37980.0,2.54820937]
[1643979705152,1.42278623,37982.0,37980.0,2.54820937]
[1643979705349,1.42278623,37982.0,37980.0,2.41137788]
[1643979705350,2.30899523,37981.0,37980.0,2.41137788]
[1643979705549,2.95960449,37981.0,37980.0,2.24999143]
[1643979705751,3.10960449,37981.0,37980.0,1.85469143]
[1643979705950,3.56220603,37981.0,37980.0,1.85469143]
[1643979706148,3.10960449,37981.0,37980.0,1.45939643]
[1643979706548,3.10960449,37981.0,37980.0,1.45843193]
[1643979706799,3.3403198,37981.0,37980.0,1.05411522]
[1643979707196,3.3403198,37981.0,37980.0,0.78321522]
[1643979707499,3.80586645,37981.0,37980.0,0.38792022]
[1643979707697,3.2033198,37981.0,37980.0,0.38792022]
[1643979707897,1.365879,37980.0,37979.0,0.00317492]
[1643979708097,2.61103589,37980.0,37979.0,0.00296452]
[1643979708295,2.94215891,37980.0,37979.0,0.00296452]
[1643979708497,1.347645,37978.0,37977.0,0.0002104]
[1643979708697,2.21554023,37978.0,37976.0,0.001]
[1643979708897,0.80899523,37977.0,37976.0,0.001]
[1643979709097,0.86789523,37977.0,37976.0,0.001]
[1643979709296,1.14901825,37977.0,37976.0,0.001]
[1643979710546,1.14901825,37977.0,37976.0,0.0012104]
[1643979710747,1.52924387,37977.0,37976.0,0.0012104]
[1643979711548,1.52924387,37977.0,37976.0,0.001]
[1643979711747,1.52924387,37977.0,37976.0,0.0012104]
[1643979712749,1.52924387,37977.0,37976.0,0.001]
[1643979713051,1.83275025,37977.0,37976.0,0.0012104]
[1643979713252,1.47446978,37977.0,37976.0,0.0012104]
[1643979714049,1.83273461,37977.0,37976.0,0.0012104]
[1643979714993,1.83273461,37977.0,37976.0,0.001]
[1643979715394,1.83273461,37977.0,37976.0,0.0012104]
[1643979716196,1.83273461,37977.0,37976.0,0.001]
[1643979716398,1.83273461,37977.0,37976.0,0.0012104]
[1643979716998,1.47244561,37977.0,37976.0,0.0012104]
[1643979717301,1.84052688,37977.0,37976.0,0.0012104]
[1643979718648,1.47297724,37977.0,37976.0,0.00108937]
[1643979719249,1.10489597,37977.0,37976.0,0.00108937]
[1643979719448,1.4678258,37977.0,37976.0,0.00108937]
[1643979720258,0.75,37976.0,37974.0,0.05090168]
[1643979720450,0.49204529,37975.0,37973.0,0.81382195]
[1643979720650,1.76487631,37974.0,37973.0,0.41848695]
[1643979720851,2.18201185,37974.0,37973.0,0.41848695]
[1643979721050,2.36313487,37974.0,37973.0,0.41848695]
[1643979721251,2.62865883,37974.0,37973.0,0.02313795]
[1643979721454,2.48631629,37974.0,37973.0,0.02313795]
[1643979721698,2.48631629,37974.0,37973.0,0.002]
[1643979721896,0.56589413,37973.0,37968.0,0.002]
[1643979722098,0.82377631,37972.0,37968.0,0.002]
[1643979722298,0.02827631,37971.0,37968.0,0.002]
[1643979722501,0.19069,37970.0,37968.0,0.002]
[1643979722696,0.02827631,37969.0,37968.0,0.067893]
[1643979722898,0.02827631,37969.0,37968.0,0.002]
[1643979722899,0.08717631,37969.0,37968.0,0.002]
[1643979723299,0.35,37968.0,37966.0,0.0511]
[1643979723497,0.43717543,37968.0,37967.0,0.00301444]
[1643979723697,0.77833681,37968.0,37967.0,0.00301444]
[1643979723897,0.065897,37967.0,37966.0,0.0011]
[1643979724096,0.124797,37967.0,37966.0,0.0011]
[1643979724498,0.174797,37967.0,37966.0,0.0011]
[1643979726148,0.574797,37967.0,37966.0,0.0011]
[1643979726347,0.674797,37967.0,37966.0,0.0011]
[1643979726547,0.274797,37967.0,37966.0,0.0011]
[1643979726948,0.274797,37967.0,37965.0,0.0011]
[1643979727149,0.731797,37966.0,37965.0,0.00092533]
[1643979727349,0.890697,37966.0,37965.0,0.00092533]
[1643979727549,0.290697,37966.0,37965.0,0.00092533]
[1643979727751,0.47182002,37966.0,37965.0,0.00092533]
[1643979727947,0.290697,37966.0,37965.0,0.00092533]
[1643979728148,0.290697,37966.0,37964.0,0.0531]
[1643979728348,0.290697,37966.0,37964.0,0.0031]
[1643979728550,0.190697,37966.0,37964.0,0.0031]
[1643979728948,0.37182002,37966.0,37964.0,0.0031]
[1643979729200,0.190697,37966.0,37964.0,0.0031]
[1643979729401,0.290697,37966.0,37964.0,0.0031]
[1643979729699,0.47182002,37966.0,37964.0,0.0031]
[1643979729900,0.290697,37966.0,37964.0,0.0031]
[1643979730102,0.47182002,37966.0,37964.0,0.0031]
[1643979730303,0.290697,37966.0,37964.0,0.0031]
[1643979730700,0.190697,37966.0,37964.0,0.0031]
[1643979731905,0.41403102,37966.0,37964.0,0.00279001]
[1643979732301,0.51403102,37966.0,37964.0,0.00279001]
[1643979732959,0.290697,37966.0,37964.0,0.00279001]
[1643979733349,0.190697,37966.0,37964.0,0.00279001]
[1643979733750,0.37182002,37966.0,37964.0,0.00279001]
[1643979733949,0.37162372,37965.0,37964.0,0.00279001]
[1643979734151,0.0589,37965.0,37964.0,0.00279001]
[1643979734450,0.2089,37965.0,37964.0,0.00279001]
[1643979734850,0.274798,37965.0,37964.0,0.00279001]
[1643979735453,0.174798,37965.0,37964.0,0.00279001]
[1643979735850,0.174798,37965.0,37964.0,0.0029999]
[1643979737100,0.17282512,37965.0,37964.0,0.0029999]
[1643979740447,0.11392512,37965.0,37964.0,0.0029999]
[1643979743252,0.47631021,37965.0,37964.0,0.0029999]
[1643979743449,0.21392512,37965.0,37964.0,0.0029999]
[1643979744302,0.58335233,37965.0,37964.0,0.0029999]
[1643979744501,0.48335233,37965.0,37964.0,0.0029999]
[1643979744704,0.58335233,37965.0,37964.0,0.0029999]
[1643979744902,0.64225233,37965.0,37964.0,0.0029999]
[1643979745103,0.27282512,37965.0,37964.0,0.0029999]
[1643979745302,0.63445929,37965.0,37964.0,0.0029999]
[1643979745504,0.63819442,37965.0,37964.0,0.00269992]
[1643979746302,0.27282512,37965.0,37964.0,0.00269992]
[1643979746702,0.17282512,37965.0,37964.0,0.00269992]
[1643979747102,0.54845309,37965.0,37964.0,0.00269992]
[1643979747304,0.64845309,37965.0,37964.0,0.00269992]
[1643979747503,0.27282512,37965.0,37964.0,0.00269992]
[1643979748148,0.66850026,37965.0,37964.0,0.00269992]
[1643979748452,0.27282512,37965.0,37964.0,0.00269992]
[1643979748649,0.66850026,37965.0,37964.0,0.00269992]
[1643979749849,1.03146707,37965.0,37964.0,0.00269992]
[1643979750250,0.81691495,37965.0,37964.0,0.00269992]
[1643979750651,0.63579193,37965.0,37964.0,0.00269992]
[1643979750852,0.27282512,37965.0,37964.0,0.00269992]
[1643979751253,0.17282512,37965.0,37964.0,0.00269992]
[1643979752815,0.17282512,37965.0,37964.0,0.00249003]
[1643979753014,0.17282512,37965.0,37964.0,0.00020931]
[1643979753015,1.03873102,37965.0,37964.0,0.00020931]
[1643979753318,1.31985404,37965.0,37964.0,0.00020931]
[1643979753514,1.31985404,37965.0,37963.0,0.00232303]
[1643979753718,0.51985404,37965.0,37963.0,0.00232303]
[1643979753914,0.18112302,37964.0,37963.0,0.00232303]
[1643979754117,0.4089,37964.0,37962.0,0.00614327]
[1643979754316,0.64070887,37964.0,37962.0,0.00614327]
[1643979754716,0.42624589,37963.0,37962.0,0.00614327]
[1643979754916,0.76626891,37963.0,37962.0,0.00614327]
[1643979755316,0.61342388,37963.0,37962.0,0.00614327]
[1643979755548,0.61342388,37963.0,37962.0,0.00422895]
[1643979757450,0.61342388,37963.0,37961.0,0.013]
[1643979757648,0.61342388,37963.0,37961.0,0.00218419]
[1643979757649,0.39590816,37962.0,37961.0,0.00218419]
[1643979757850,0.80251416,37962.0,37961.0,0.00218419]
[1643979758349,0.98373373,37962.0,37961.0,0.00218419]
[1643979759201,1.34565353,37962.0,37961.0,0.00218419]
[1643979759803,0.97802811,37962.0,37961.0,0.00218419]
[1643979761102,0.97802811,37962.0,37961.0,0.71074495]
[1643979761303,0.61610831,37962.0,37961.0,0.71074495]
[1643979761701,0.43488874,37962.0,37961.0,0.71074495]
[1643979761903,0.43488874,37962.0,37961.0,0.69765799]
[1643979762603,0.79606583,37962.0,37961.0,0.69765799]
[1643979763052,0.43488874,37962.0,37961.0,0.69765799]
[1643979763750,0.79288901,37962.0,37961.0,0.69765799]
[1643979763950,0.79880396,37962.0,37961.0,0.69765799]
[1643979764353,0.79880396,37962.0,37961.0,0.30219499]
[1643979765051,0.98002353,37962.0,37961.0,0.30219499]
[1643979765253,0.98002353,37962.0,37960.0,0.001]
[1643979765452,0.98002353,37962.0,37960.0,0.002013]
[1643979765453,1.49443322,37961.0,37960.0,0.002013]
[1643979765653,1.55333322,37961.0,37960.0,0.00161171]
[1643979765852,1.48455279,37961.0,37960.0,0.00161171]
[1643979766452,1.48455279,37961.0,37960.0,0.00059871]
[1643979766903,1.46844483,37961.0,37960.0,0.00059871]
[1643979767904,1.92099148,37961.0,37960.0,0.00059871]
[1643979768103,1.92099148,37961.0,37959.0,0.00301301]
[1643979768305,0.76488274,37960.0,37959.0,0.00301301]
[1643979768503,1.36817059,37960.0,37959.0,0.00301301]
[1643979768704,1.46817059,37960.0,37959.0,0.00301301]
[1643979768904,1.46817059,37960.0,37959.0,0.002]
[1643979770005,1.51817059,37960.0,37959.0,0.00020811]
[1643979770208,0.00248993,37958.0,37957.0,0.0041]
[1643979770457,0.06138993,37958.0,37957.0,0.0541]
[1643979770650,0.08967267,37958.0,37957.0,0.0541]
[1643979770850,0.13967267,37958.0,37957.0,0.05430812]
[1643979776506,0.14100348,37958.0,37957.0,0.04887731]
[1643979777807,0.13967267,37958.0,37957.0,0.04887731]
[1643979778451,0.04749934,37956.0,37955.0,0.001]
[1643979778653,0.13468208,37956.0,37955.0,0.001]
[1643979778851,0.51802163,37956.0,37955.0,0.001]
[1643979779051,0.18468208,37956.0,37955.0,0.001]
[1643979779251,0.28468208,37956.0,37955.0,0.001]
[1643979779657,0.23468208,37956.0,37955.0,0.001]
[1643979780052,0.25639934,37956.0,37954.0,0.057909]
[1643979780253,0.70254645,37956.0,37953.0,0.551]
[1643979780451,0.73436945,37956.0,37953.0,0.551]
[1643979780650,0.83436945,37956.0,37953.0,0.551]
[1643979780852,0.39614711,37955.0,37953.0,0.551]
[1643979781051,0.39614711,37955.0,37953.0,0.55151534]
[1643979781251,0.79614711,37955.0,37953.0,0.55151534]
[1643979781550,0.86205911,37955.0,37953.0,0.55151534]
[1643979782005,1.04327868,37955.0,37953.0,0.551]
[1643979782208,0.64713157,37955.0,37953.0,0.551]
[1643979782407,1.04327868,37955.0,37953.0,0.551]
[1643979782806,1.04327868,37955.0,37953.0,0.541]
[1643979783006,0.64713157,37955.0,37953.0,0.541]
[1643979783407,1.04327868,37955.0,37953.0,0.541]
[1643979784308,1.04327868,37955.0,37953.0,0.606906]
[1643979784509,0.54713157,37955.0,37953.0,0.606906]
[1643979785208,0.365912,37955.0,37953.0,0.606906]
[1643979785465,0.54713157,37955.0,37953.0,0.606906]
[1643979785662,0.365912,37955.0,37953.0,0.606906]
[1643979785861,0.365912,37955.0,37953.0,0.60711414]
[1643979785862,0.54713157,37955.0,37953.0,0.60711414]
[1643979786061,0.365912,37955.0,37953.0,0.60711414]
[1643979786261,0.94327868,37955.0,37953.0,0.60711414]
[1643979786461,0.365912,37955.0,37953.0,0.60711414]
[1643979786661,0.94327868,37955.0,37953.0,0.60711414]
[1643979786865,0.76205911,37955.0,37953.0,0.60711414]
[1643979787862,0.365912,37955.0,37953.0,0.60711414]
[1643979788564,0.05,37954.0,37953.0,0.54120814]
[1643979790506,1.04327868,37955.0,37953.0,0.54120814]
[1643979792006,1.04149184,37955.0,37953.0,0.54120814]
[1643979792412,0.86027227,37955.0,37953.0,0.54120814]
[1643979793658,1.04149184,37955.0,37953.0,0.54120814]
[1643979794962,0.05,37954.0,37953.0,0.54120814]
[1643979795757,1.04149184,37955.0,37953.0,0.54120814]
[1643979796157,1.03791817,37955.0,37953.0,0.54120814]
[1643979797416,0.39614711,37954.0,37953.0,0.54120814]
[1643979797817,0.49614711,37954.0,37953.0,0.54120814]
[1643979800322,0.54614711,37954.0,37953.0,0.54120814]
[1643979802153,0.17831212,37954.0,37953.0,0.54120814]
[1643979802453,0.07831212,37954.0,37953.0,0.54120814]
[1643979803255,0.02831212,37954.0,37953.0,0.54120814]
[1643979803656,0.07831212,37954.0,37953.0,0.54120814]
[1643979803955,0.02831212,37954.0,37953.0,0.54120814]
[1643979809360,0.39418927,37954.0,37953.0,0.50020814]
[1643979809561,0.44418927,37954.0,37953.0,0.50020814]
[1643979809760,0.17831212,37954.0,37953.0,0.50020814]
[1643979809960,0.35953169,37954.0,37953.0,0.50020814]
[1643979810163,0.17831212,37954.0,37953.0,0.50020814]
[1643979810961,0.07831212,37954.0,37953.0,0.50020814]
[1643979811362,0.02831212,37954.0,37953.0,0.50020814]
[1643979811809,0.02831212,37954.0,37953.0,0.55020814]
[1643979814613,0.38921263,37954.0,37953.0,0.55020814]
[1643979814911,0.12831212,37954.0,37953.0,0.55020814]
[1643979815112,0.30953169,37954.0,37953.0,0.55020814]
[1643979815562,0.12831212,37954.0,37953.0,0.55020814]
[1643979815967,0.02831212,37954.0,37953.0,0.55020814]
[1643979817863,0.3893308,37954.0,37953.0,0.55020814]
[1643979818064,0.02831212,37954.0,37953.0,0.55020814]
[1643979818268,0.12831212,37954.0,37953.0,0.55020814]
[1643979818865,0.12831212,37954.0,37953.0,0.54966895]
[1643979819322,0.02831212,37954.0,37953.0,0.54966895]
[1643979826066,0.45702032,37954.0,37953.0,0.54966895]
[1643979826365,0.55702032,37954.0,37953.0,0.54966895]
[1643979826562,0.73823989,37954.0,37953.0,0.54966895]
[1643979826810,0.55702032,37954.0,37953.0,0.41372253]
[1643979827110,0.36843169,37954.0,37953.0,0.41372253]
[1643979827310,0.72501087,37954.0,37953.0,0.41372253]
[1643979827510,0.08721212,37954.0,37953.0,0.41372253]
[1643979827710,0.36843169,37954.0,37953.0,0.41372253]
[1643979827910,0.18721212,37954.0,37953.0,0.41372253]
[1643979828312,0.18721212,37954.0,37953.0,0.46372253]
[1643979828912,0.08721212,37954.0,37953.0,0.46372253]
[1643979830758,0.08721212,37954.0,37953.0,0.41372253]
[1643979830957,0.44890494,37954.0,37953.0,0.41372253]
[1643979831360,0.73012451,37954.0,37953.0,0.41372253]
[1643979831556,0.36843169,37954.0,37953.0,0.41372253]
[1643979832157,0.36843169,37954.0,37953.0,0.46372253]
[1643979832357,0.26843169,37954.0,37953.0,0.46372253]
[1643979832556,0.36843169,37954.0,37953.0,0.46372253]
[1643979832757,0.73404624,37954.0,37953.0,0.46372253]
[1643979833758,0.73404624,37954.0,37953.0,0.41372253]
[1643979834814,0.73404624,37954.0,37953.0,0.27776792]
[1643979835818,1.18659289,37954.0,37953.0,0.27776792]
[1643979836718,1.18659289,37954.0,37952.0,0.0019611]
[1643979836918,0.77101469,37953.0,37952.0,0.0019611]
[1643979837119,0.52991469,37953.0,37952.0,0.0019611]
[1643979837319,0.86113426,37953.0,37952.0,0.001]
[1643979838764,0.67991469,37953.0,37952.0,0.001]
[1643979840765,0.67991469,37953.0,37951.0,0.01076501]
[1643979840766,0.74582688,37953.0,37951.0,0.01076501]
[1643979841066,0.46123686,37952.0,37951.0,0.01076501]
[1643979841464,0.56123686,37952.0,37951.0,0.01076501]
[1643979841729,0.35663719,37953.0,37952.0,0.23860651]
[1643979842219,0.29773719,37953.0,37952.0,0.23860651]
[1643979844921,0.29773719,37953.0,37952.0,0.65887963]
[1643979845119,0.29773719,37953.0,37952.0,0.28860651]
[1643979847766,0.29773719,37953.0,37952.0,0.53860651]
[1643979847964,0.29773719,37953.0,37952.0,0.5621061]
[1643979847965,0.131825,37953.0,37952.0,0.5621061]
[1643979848164,0.131825,37953.0,37952.0,0.6121061]
[1643979848964,0.5281342,37953.0,37952.0,0.6121061]
[1643979849213,0.5781342,37953.0,37952.0,0.6121061]
[1643979849418,0.181825,37953.0,37952.0,0.6121061]
[1643979852519,0.181825,37953.0,37952.0,0.23860651]
[1643979852821,0.18167387,37953.0,37952.0,0.28860651]
[1643979855764,0.18167387,37953.0,37952.0,0.60660752]
[1643979855965,0.18167387,37953.0,37952.0,0.28860651]
[1643979856811,0.22337838,37953.0,37952.0,0.28860651]
[1643979857514,0.27337838,37953.0,37952.0,0.28860651]
[1643979857914,0.22337838,37953.0,37952.0,0.19590813]
[1643979860016,0.22337838,37953.0,37952.0,0.24590813]
[1643979862469,0.40459795,37953.0,37952.0,0.24590813]
[1643979862864,0.32337838,37953.0,37952.0,0.24590813]
[1643979863866,0.22337838,37953.0,37952.0,0.24590813]
[1643979864065,0.32337838,37953.0,37952.0,0.24590813]
[1643979865116,0.22337838,37953.0,37952.0,0.24590813]
[1643979865312,0.32337838,37953.0,37952.0,0.24590813]
[1643979865517,0.22337838,37953.0,37952.0,0.24590813]
[1643979865717,0.32337838,37953.0,37952.0,0.24590813]
[1643979867317,0.22337838,37953.0,37952.0,0.24590813]
[1643979868565,0.27337838,37953.0,37952.0,0.24590813]
[1643979868966,0.22337838,37953.0,37952.0,0.55468221]
[1643979869170,0.2323,37962.0,37952.0,0.55468221]
[1643979869171,0.228801,37960.0,37954.0,1.9]
[1643979869372,0.228801,37962.0,37961.0,1.69186637]
[1643979869567,0.5072,37968.0,37961.0,2.28870337]
[1643979869568,0.228801,37963.0,37961.0,2.28870337]
[1643979869766,0.736001,37968.0,37962.0,2.6656893]
[1643979869967,0.16746321,37963.0,37962.0,2.8156893]
[1643979870166,0.5072,37968.0,37967.0,0.896837]
[1643979870377,0.000364,37973.0,37967.0,0.996837]
[1643979870568,0.000364,37974.0,37973.0,1.04671202]
[1643979870767,0.5072,37977.0,37974.0,0.13180802]
[1643979870968,0.5072,37977.0,37976.0,0.00513595]
[1643979871714,0.5072,37977.0,37976.0,0.05513595]
[1643979871912,0.5072,37977.0,37976.0,0.31284371]
[1643979872511,0.5072,37977.0,37976.0,0.30770776]
[1643979872713,0.5072,37977.0,37976.0,0.05]
[1643979872920,0.5072,37977.0,37976.0,0.05513595]
[1643979873214,0.5072,37977.0,37976.0,0.05]
[1643979873413,0.5072,37977.0,37975.0,0.065857]
[1643979873615,0.04486405,37976.0,37975.0,0.065857]
[1643979874314,0.04486405,37976.0,37975.0,0.07099295]
[1643979874514,0.66830025,37977.0,37975.0,0.07099295]
[1643979874914,0.66931292,37977.0,37975.0,0.07099295]
[1643979875113,0.66931292,37977.0,37975.0,0.065857]
[1643979875578,0.76159762,37977.0,37975.0,0.065857]
[1643979875774,0.76058495,37977.0,37975.0,0.065857]
[1643979876077,0.66830025,37977.0,37976.0,0.00513595]
[1643979876274,0.66793605,37977.0,37975.0,0.065857]
[1643979876474,0.66830025,37977.0,37975.0,0.065857]
[1643979877378,0.66830025,37977.0,37975.0,0.07099295]
[1643979877777,0.74736525,37977.0,37975.0,0.065857]
[1643979878575,0.74736525,37977.0,37972.0,0.181723]
[1643979878975,0.04486405,37973.0,37972.0,0.181723]
[1643979879420,0.04486405,37973.0,37972.0,0.131723]
[1643979880625,0.39381144,37973.0,37972.0,0.181723]
[1643979880829,0.39381144,37973.0,37972.0,0.05]
[1643979880830,0.20376405,37973.0,37972.0,0.05]
[1643979881223,0.20376405,37973.0,37968.0,0.07042126]
[1643979881424,0.89486405,37969.0,37968.0,0.02042126]
[1643979881624,0.95376405,37969.0,37968.0,0.07042126]
[1643979881822,0.95376405,37969.0,37968.0,0.02042126]
[1643979882026,0.95376405,37969.0,37968.0,0.07042126]
[1643979882622,0.95376405,37969.0,37968.0,0.05]
[1643979882824,0.24697165,37966.0,37963.0,0.05]
[1643979883074,0.0589,37965.0,37964.0,0.065893]
[1643979883381,0.0589,37965.0,37964.0,0.115893]
[1643979884175,0.10376405,37965.0,37964.0,0.115893]
[1643979884976,0.10376405,37965.0,37964.0,0.20796411]
[1643979885179,0.0589,37965.0,37964.0,0.20796411]
[1643979885378,0.10376405,37965.0,37964.0,0.20796411]
[1643979887220,0.10376405,37965.0,37964.0,0.115893]
[1643979889223,0.10376405,37965.0,37964.0,0.05]
[1643979889424,0.10376405,37965.0,37962.0,0.22467457]
[1643979889623,0.131796,37964.0,37962.0,0.22467457]
[1643979889825,0.04486405,37963.0,37962.0,0.22467457]
[1643979890226,0.04486405,37963.0,37962.0,0.21953862]
[1643979891876,0.04486405,37963.0,37962.0,0.115899]
[1643979891877,0.39344474,37963.0,37962.0,0.115899]
[1643979892077,0.39344474,37963.0,37962.0,0.05]
[1643979892278,0.45234474,37963.0,37960.0,0.181791]
[1643979892477,0.40748069,37963.0,37960.0,0.181791]
[1643979892881,0.40837048,37963.0,37960.0,0.181791]
[1643979893079,0.04486405,37961.0,37960.0,0.181791]
[1643979893279,0.10376405,37961.0,37960.0,0.181791]
[1643979894316,0.10376405,37961.0,37960.0,0.18171543]
[1643979895917,0.38775536,37961.0,37960.0,0.18685138]
[1643979896523,0.38775536,37961.0,37960.0,0.18171543]
[1643979896818,0.38648519,37961.0,37960.0,0.18812155]
[1643979901822,0.38648519,37961.0,37960.0,0.18171543]
[1643979902924,0.34289131,37961.0,37960.0,0.18171543]
[1643979903125,0.0659,37962.0,37960.0,0.18171543]
[1643979903126,0.0659,37962.0,37960.0,1.67937351]
[1643979903330,0.00090243,37963.0,37962.0,1.2367762]
[1643979903525,0.5072,37970.0,37963.0,0.65593963]
[1643979903526,0.0003642,37969.0,37963.0,0.65593963]
[1643979903725,0.5072,37970.0,37967.0,0.00640612]
[1643979903925,0.0003643,37969.0,37968.0,0.08502924]
[1643979904129,0.5075643,37970.0,37969.0,0.25937017]
[1643979904329,0.5072,37970.0,37969.0,0.26577629]
[1643979907169,0.5072,37970.0,37969.0,0.5889536]
[1643979907371,0.5072,37970.0,37969.0,0.5871798]
[1643979907570,0.5072,37970.0,37969.0,0.9340168]
[1643979908169,0.5072,37970.0,37969.0,1.42761068]
[1643979908369,0.5072,37970.0,37969.0,0.92761068]
[1643979909220,0.5072,37970.0,37969.0,0.9340168]
[1643979909621,0.5072,37970.0,37969.0,0.92761068]
[1643979909822,0.5072,37970.0,37969.0,0.67464663]
[1643979910021,0.5072,37970.0,37969.0,0.32780963]
[1643979910222,0.5072,37970.0,37969.0,0.00640612]
[1643979910724,0.5072,37970.0,37968.0,0.05]
[1643979910928,0.04359388,37969.0,37968.0,0.05]
[1643979911224,0.04344561,37969.0,37968.0,0.05]
[1643979911422,0.5075643,37970.0,37968.0,0.05655439]
[1643979911622,0.55100991,37970.0,37968.0,0.05655439]
[1643979911823,0.55100991,37970.0,37969.0,0.00655439]
[1643979912027,0.55064561,37970.0,37969.0,0.00655439]
[1643979913080,0.55064561,37970.0,37966.0,0.181753]
[1643979913081,1.36090892,37970.0,37966.0,0.181753]
[1643979913279,1.36090892,37970.0,37957.0,0.00090286]
[1643979913280,0.78004561,37967.0,37957.0,0.00090286]
[1643979913574,0.39344561,37965.0,37958.0,0.0659]
[1643979913780,0.48061753,37965.0,37958.0,0.0659]
[1643979913974,0.2232248,37965.0,37959.0,0.07869347]
[1643979914173,0.2232248,37965.0,37959.0,0.08524786]
[1643979914772,0.2232248,37965.0,37958.0,0.31793221]
[1643979914773,0.065898,37964.0,37958.0,0.31793221]
[1643979914972,0.04344561,37959.0,37958.0,0.31137782]
[1643979915177,0.10234561,37959.0,37958.0,0.31793221]
[1643979915473,0.10234561,37959.0,37958.0,0.0659]
[1643979916727,0.18006148,37959.0,37958.0,0.0659]
[1643979917329,0.18006148,37959.0,37957.0,0.00090272]
[1643979917929,0.065903,37958.0,37954.0,0.07522532]
[1643979918129,0.0589,37957.0,37956.0,0.00090273]
[1643979918432,0.3000523,37957.0,37956.0,0.00090273]
[1643979918830,0.23415061,37957.0,37956.0,0.00090273]
[1643979919030,0.23415061,37957.0,37954.0,0.0659]
[1643979919231,0.190705,37957.0,37955.0,0.00090275]
[1643979919430,0.04344561,37956.0,37955.0,0.00090275]
[1643979920332,0.04344561,37956.0,37955.0,0.0989889]
[1643979920768,0.04344561,37956.0,37955.0,0.10554329]
[1643979921769,0.190705,37957.0,37955.0,0.0989889]
[1643979921969,0.190705,37957.0,37956.0,0.28358016]
[1643979922173,0.190705,37957.0,37956.0,0.33358016]
[1643979922972,0.0589,37957.0,37956.0,0.33358016]
[1643979923372,0.10234561,37957.0,37956.0,0.33358016]
[1643979923573,0.065902,37958.0,37956.0,0.33358016]
[1643979923771,0.065902,37958.0,37957.0,0.40655439]
[1643979924619,0.10934761,37958.0,37957.0,0.40655439]
[1643979924824,0.10934761,37958.0,37956.0,0.33358016]
[1643979925220,0.04344561,37957.0,37956.0,0.33358016]
[1643979926820,0.065902,37958.0,37956.0,0.34013455]
[1643979927025,0.065885,37961.0,37956.0,0.34013455]
[1643979927222,0.13177,37965.0,37961.0,0.19848967]
[1643979927223,0.52769983,37965.0,37961.0,0.19848967]
[1643979927427,0.52769983,37965.0,37962.0,0.00655439]
[1643979927428,0.5072,37963.0,37962.0,0.00655439]
[1643979927823,0.5072,37963.0,37962.0,0.09856168]
[1643979928080,0.5072,37963.0,37962.0,0.37459037]
[1643979929180,0.05,37963.0,37962.0,0.37459037]
[1643979929379,0.00090259,37964.0,37962.0,0.37459037]
[1643979929780,0.0503643,37967.0,37962.0,0.37459037]
[1643979930084,0.04344561,37963.0,37962.0,0.09856168]
[1643979930479,0.115883,37964.0,37962.0,0.09856168]
[1643979930678,0.065883,37964.0,37962.0,0.09856168]
[1643979931281,0.065883,37964.0,37962.0,0.14856168]
[1643979931481,0.04344561,37963.0,37962.0,0.14200729]
[1643979931923,0.04344561,37963.0,37962.0,0.14856168]
[1643979932123,0.04344561,37963.0,37962.0,0.14200729]
[1643979933125,0.04344561,37963.0,37962.0,0.14194162]